[Event "Titled Tuesday Blitz July 4 Late 2023"]
[White "Kantor, Gergely"]
[Black "Pranav, V"]
[WhiteFideId "751499"]
[BlackFideId "25060783"]
[WhiteElo "2824"]
[BlackElo "2983"]
[Result "1-0"]
[Round "9"]
[TimeControl "180+2"]
[Date "2023.07.04"]
[WhiteClock "0:00:22"]
[BlackClock "0:00:03"]
[Board "11"]

1. e4 {[%clk 0:03:00]}  c5 {[%clk 0:02:59]} 2. Nf3 {[%clk 0:03:01]}  Nc6 {[%clk 0:02:59]} 3. Bb5 {[%clk 0:03:01]}  g6 {[%clk 0:03:00]} 4. O-O {[%clk 0:02:59]}  Bg7 {[%clk 0:03:00]} 5. c3 {[%clk 0:02:59]}  e5 {[%clk 0:02:56]} 6. d4 {[%clk 0:02:56]}  cxd4 {[%clk 0:02:55]} 7. cxd4 {[%clk 0:02:56]}  exd4 {[%clk 0:02:56]} 8. Nbd2 {[%clk 0:02:56]}  Nge7 {[%clk 0:02:55]} 9. Nc4 {[%clk 0:02:56]}  O-O {[%clk 0:02:54]} 10. Nd6 {[%clk 0:02:56]}  h6 {[%clk 0:02:39]} 11. Bf4 {[%clk 0:02:49]}  a6 {[%clk 0:02:37]} 12. Bc4 {[%clk 0:02:43]}  b5 {[%clk 0:02:36]} 13. Bb3 {[%clk 0:02:43]}  Na5 {[%clk 0:02:31]} 14. Rc1 {[%clk 0:02:42]}  Nxb3 {[%clk 0:02:29]} 15. Qxb3 {[%clk 0:02:39]}  Nc6 {[%clk 0:02:27]} 16. Bg3 {[%clk 0:02:22]}  Qe7 {[%clk 0:02:24]} 17. h4 {[%clk 0:02:17]}  Kh7 {[%clk 0:02:14]} 18. h5 {[%clk 0:02:09]}  a5 {[%clk 0:01:53]} 19. Nxb5 {[%clk 0:01:45]}  a4 {[%clk 0:01:52]} 20. Qc2 {[%clk 0:01:38]}  Qb4 {[%clk 0:01:36]} 21. Nc7 {[%clk 0:01:33]}  Rb8 {[%clk 0:01:22]} 22. Nd5 {[%clk 0:01:32]}  Qxb2 {[%clk 0:01:22]} 23. Bxb8 {[%clk 0:01:32]}  Qxb8 {[%clk 0:01:23]} 24. Qc5 {[%clk 0:01:22]}  Ba6 {[%clk 0:01:13]} 25. Rfe1 {[%clk 0:01:14]}  Re8 {[%clk 0:01:12]} 26. hxg6+ {[%clk 0:01:09]}  fxg6 {[%clk 0:01:12]} 27. e5 {[%clk 0:01:08]}  d3 {[%clk 0:01:06]} 28. Nf6+ {[%clk 0:01:07]}  Bxf6 {[%clk 0:01:02]} 29. exf6 {[%clk 0:01:07]}  Rf8 {[%clk 0:00:58]} 30. Re7+ {[%clk 0:01:05]}  Kh8 {[%clk 0:00:52]} 31. Rxd7 {[%clk 0:00:59]}  Rxf6 {[%clk 0:00:51]} 32. Qc3 {[%clk 0:00:58]}  Qf4 {[%clk 0:00:47]} 33. Rf7 {[%clk 0:00:42]}  d2 {[%clk 0:00:46]} 34. Rd1 {[%clk 0:00:41]}  Nd4 {[%clk 0:00:44]} 35. Rxf6 {[%clk 0:00:35]}  Ne2+ {[%clk 0:00:43]} 36. Kh1 {[%clk 0:00:35]}  Nxc3 {[%clk 0:00:42]} 37. Rxf4 {[%clk 0:00:34]}  Nxd1 {[%clk 0:00:42]} 38. Nxd2 {[%clk 0:00:32]}  Nc3 {[%clk 0:00:36]} 39. a3 {[%clk 0:00:28]}  Bb5 {[%clk 0:00:33]} 40. Rb4 {[%clk 0:00:26]}  Bd7 {[%clk 0:00:31]} 41. Ne4 {[%clk 0:00:24]}  Nd5 {[%clk 0:00:17]} 42. Rd4 {[%clk 0:00:23]}  Bc6 {[%clk 0:00:15]} 43. Rc4 {[%clk 0:00:23]}  Bd7 {[%clk 0:00:13]} 44. Nc5 {[%clk 0:00:23]}  Bb5 {[%clk 0:00:13]} 45. Rd4 {[%clk 0:00:23]}  Nc3 {[%clk 0:00:13]} 46. Rb4 {[%clk 0:00:21]}  Be2 {[%clk 0:00:03]} 47. Ne4 {[%clk 0:00:20]}  Nxe4 {[%clk 0:00:02]} 48. Rxe4 {[%clk 0:00:20]}  Bd1 {[%clk 0:00:03]} 49. Re7 {[%clk 0:00:20]}  Kg8 {[%clk 0:00:03]} 50. Kh2 {[%clk 0:00:21]}  Kf8 {[%clk 0:00:04]} 51. Ra7 {[%clk 0:00:21]}  Kg8 {[%clk 0:00:05]} 52. Kg3 {[%clk 0:00:21]}  Bb3 {[%clk 0:00:03]} 53. Kf4 {[%clk 0:00:22]} 1-0


[Site "https://www.chess.com"]

[Event "Titled Tuesday Blitz July 4 Late 2023"]
[White "Talibov, Shiroghlan"]
[Black "Paravyan, David"]
[WhiteFideId "13429078"]
[BlackFideId "4194985"]
[WhiteElo "2816"]
[BlackElo "2974"]
[Result "0-1"]
[Round "9"]
[TimeControl "180+2"]
[Date "2023.07.04"]
[WhiteClock "0:00:32"]
[BlackClock "0:00:02"]
[Board "12"]

1. e4 {[%clk 0:03:00]}  e5 {[%clk 0:02:58]} 2. Nf3 {[%clk 0:03:00]}  Nf6 {[%clk 0:02:58]} 3. d4 {[%clk 0:02:37]}  Nxe4 {[%clk 0:02:58]} 4. dxe5 {[%clk 0:02:38]}  Bc5 {[%clk 0:02:57]} 5. Bc4 {[%clk 0:02:37]}  Nxf2 {[%clk 0:02:54]} 6. Bxf7+ {[%clk 0:02:37]}  Kxf7 {[%clk 0:02:55]} 7. Qd5+ {[%clk 0:02:37]}  Kg6 {[%clk 0:02:55]} 8. Qxc5 {[%clk 0:02:37]}  Nxh1 {[%clk 0:02:56]} 9. Nc3 {[%clk 0:02:37]}  h6 {[%clk 0:02:54]} 10. Qd5 {[%clk 0:02:36]}  Kh7 {[%clk 0:02:38]} 11. Qe4+ {[%clk 0:02:27]}  Kg8 {[%clk 0:02:37]} 12. Qd5+ {[%clk 0:02:26]}  Kh7 {[%clk 0:02:29]} 13. Qe4+ {[%clk 0:02:26]}  Kg8 {[%clk 0:02:15]} 14. Be3 {[%clk 0:02:13]}  Qe8 {[%clk 0:00:57]} 15. O-O-O {[%clk 0:02:10]}  d6 {[%clk 0:00:57]} 16. Nd5 {[%clk 0:02:05]}  Na6 {[%clk 0:00:55]} 17. Nf4 {[%clk 0:01:43]}  Be6 {[%clk 0:00:35]} 18. Nxe6 {[%clk 0:01:39]}  Qxe6 {[%clk 0:00:36]} 19. Qxb7 {[%clk 0:01:39]}  Qc8 {[%clk 0:00:15]} 20. Qd5+ {[%clk 0:01:33]}  Kh7 {[%clk 0:00:15]} 21. Qe4+ {[%clk 0:01:20]}  g6 {[%clk 0:00:14]} 22. Qh4 {[%clk 0:01:17]}  Kg8 {[%clk 0:00:08]} 23. exd6 {[%clk 0:01:11]}  Rh7 {[%clk 0:00:05]} 24. Qc4+ {[%clk 0:01:03]}  Rf7 {[%clk 0:00:02]} 25. Ne5 {[%clk 0:01:03]}  Qf5 {[%clk 0:00:01]} 26. Nxf7 {[%clk 0:00:43]}  Qxf7 {[%clk 0:00:02]} 27. d7 {[%clk 0:00:32]}  Qxc4 {[%clk 0:00:02]} 0-1


[Site "https://www.chess.com"]

[Event "Titled Tuesday Blitz July 4 Late 2023"]
[White "Keymer, Vincent"]
[Black "Plat, Vojtech"]
[WhiteFideId "12940690"]
[BlackFideId "325740"]
[WhiteElo "2940"]
[BlackElo "2811"]
[Result "0-1"]
[Round "9"]
[TimeControl "180+2"]
[Date "2023.07.04"]
[WhiteClock "0:00:01"]
[BlackClock "0:00:35"]
[Board "14"]

1. a3 {[%clk 0:03:00]}  d6 {[%clk 0:02:59]} 2. d4 {[%clk 0:03:00]}  e5 {[%clk 0:02:59]} 3. e4 {[%clk 0:02:50]}  exd4 {[%clk 0:02:59]} 4. Nf3 {[%clk 0:02:44]}  Nf6 {[%clk 0:02:57]} 5. Qxd4 {[%clk 0:02:42]}  Nc6 {[%clk 0:02:56]} 6. Bb5 {[%clk 0:02:42]}  Bd7 {[%clk 0:02:56]} 7. Qd3 {[%clk 0:02:42]}  g6 {[%clk 0:02:50]} 8. O-O {[%clk 0:02:38]}  Bg7 {[%clk 0:02:50]} 9. Nc3 {[%clk 0:02:38]}  O-O {[%clk 0:02:49]} 10. Bg5 {[%clk 0:02:38]}  h6 {[%clk 0:02:48]} 11. Bh4 {[%clk 0:02:38]}  Re8 {[%clk 0:02:47]} 12. Rad1 {[%clk 0:02:35]}  g5 {[%clk 0:02:47]} 13. Bg3 {[%clk 0:02:35]}  Nh5 {[%clk 0:02:47]} 14. Bxc6 {[%clk 0:02:24]}  bxc6 {[%clk 0:02:46]} 15. Ne2 {[%clk 0:02:05]}  Qe7 {[%clk 0:02:21]} 16. e5 {[%clk 0:01:47]}  g4 {[%clk 0:02:06]} 17. exd6 {[%clk 0:01:33]}  Qxe2 {[%clk 0:02:02]} 18. Qxe2 {[%clk 0:01:33]}  Rxe2 {[%clk 0:02:02]} 19. dxc7 {[%clk 0:01:34]}  gxf3 {[%clk 0:01:49]} 20. Rxd7 {[%clk 0:01:32]}  Nxg3 {[%clk 0:01:43]} 21. hxg3 {[%clk 0:01:23]}  Bf6 {[%clk 0:01:39]} 22. Rfd1 {[%clk 0:01:17]}  Kg7 {[%clk 0:01:34]} 23. R1d3 {[%clk 0:00:41]}  Rc8 {[%clk 0:01:27]} 24. Rxf3 {[%clk 0:00:32]}  Re7 {[%clk 0:01:23]} 25. Rd6 {[%clk 0:00:28]}  Bxb2 {[%clk 0:01:22]} 26. Rb3 {[%clk 0:00:19]}  Be5 {[%clk 0:01:19]} 27. Rxc6 {[%clk 0:00:19]}  Rcxc7 {[%clk 0:01:17]} 28. Rxc7 {[%clk 0:00:20]}  Rxc7 {[%clk 0:01:16]} 29. Rb5 {[%clk 0:00:21]}  Bd6 {[%clk 0:01:11]} 30. Ra5 {[%clk 0:00:21]}  Rxc2 {[%clk 0:01:11]} 31. Rxa7 {[%clk 0:00:21]}  Bc5 {[%clk 0:01:11]} 32. Ra4 {[%clk 0:00:21]}  Bxf2+ {[%clk 0:01:09]} 33. Kh2 {[%clk 0:00:21]}  Rc3 {[%clk 0:01:08]} 34. Rg4+ {[%clk 0:00:20]}  Kf8 {[%clk 0:01:08]} 35. a4 {[%clk 0:00:21]}  Ra3 {[%clk 0:01:07]} 36. Kh3 {[%clk 0:00:17]}  Be3 {[%clk 0:00:54]} 37. Re4 {[%clk 0:00:15]}  Bg5 {[%clk 0:00:54]} 38. Kg4 {[%clk 0:00:15]}  Kg7 {[%clk 0:00:54]} 39. Kh3 {[%clk 0:00:13]}  Kg6 {[%clk 0:00:53]} 40. Rc4 {[%clk 0:00:13]}  Ra2 {[%clk 0:00:52]} 41. Rc6+ {[%clk 0:00:12]}  f6 {[%clk 0:00:52]} 42. Rc4 {[%clk 0:00:13]}  h5 {[%clk 0:00:52]} 43. Kh2 {[%clk 0:00:14]}  Ra3 {[%clk 0:00:51]} 44. Rb4 {[%clk 0:00:14]}  Bd2 {[%clk 0:00:48]} 45. Re4 {[%clk 0:00:14]}  Ba5 {[%clk 0:00:44]} 46. g4 {[%clk 0:00:07]}  Bc7+ {[%clk 0:00:43]} 47. Kg1 {[%clk 0:00:08]}  h4 {[%clk 0:00:43]} 48. Kf2 {[%clk 0:00:07]}  Be5 {[%clk 0:00:43]} 49. Kf1 {[%clk 0:00:04]}  Kg5 {[%clk 0:00:44]} 50. Rc4 {[%clk 0:00:04]}  Bf4 {[%clk 0:00:42]} 51. Rc8 {[%clk 0:00:03]}  Kxg4 {[%clk 0:00:42]} 52. Rc4 {[%clk 0:00:02]}  Kg3 {[%clk 0:00:40]} 53. Ke2 {[%clk 0:00:02]}  Be5 {[%clk 0:00:39]} 54. Kf1 {[%clk 0:00:03]}  Ra2 {[%clk 0:00:37]} 55. a5 {[%clk 0:00:02]}  Rxa5 {[%clk 0:00:36]} 56. Ke2 {[%clk 0:00:02]}  Ra2+ {[%clk 0:00:35]} 57. Ke3 {[%clk 0:00:01]}  Rxg2 {[%clk 0:00:35]} 0-1


[Site "https://www.chess.com"]

[Event "Titled Tuesday Blitz July 4 Late 2023"]
[White "Rosen, Eric"]
[Black "Zhigalko, Sergei"]
[WhiteFideId "2032562"]
[BlackFideId "13502956"]
[WhiteElo "2690"]
[BlackElo "2892"]
[Result "1-0"]
[Round "9"]
[TimeControl "180+2"]
[Date "2023.07.04"]
[WhiteClock "0:00:04"]
[BlackClock "0:00:00"]
[Board "16"]

1. d4 {[%clk 0:03:00]}  Nf6 {[%clk 0:03:00]} 2. Bf4 {[%clk 0:03:00]}  b6 {[%clk 0:02:54]} 3. Nf3 {[%clk 0:03:00]}  Bb7 {[%clk 0:02:55]} 4. c4 {[%clk 0:03:00]}  e6 {[%clk 0:02:55]} 5. e3 {[%clk 0:02:59]}  Bb4+ {[%clk 0:02:52]} 6. Nfd2 {[%clk 0:03:00]}  O-O {[%clk 0:02:51]} 7. a3 {[%clk 0:03:00]}  Be7 {[%clk 0:02:49]} 8. Nc3 {[%clk 0:03:00]}  d6 {[%clk 0:02:48]} 9. Qc2 {[%clk 0:02:58]}  c5 {[%clk 0:02:46]} 10. d5 {[%clk 0:02:45]}  exd5 {[%clk 0:02:22]} 11. cxd5 {[%clk 0:02:45]}  Re8 {[%clk 0:02:22]} 12. Be2 {[%clk 0:02:40]}  Nbd7 {[%clk 0:02:14]} 13. e4 {[%clk 0:02:40]}  a6 {[%clk 0:02:08]} 14. a4 {[%clk 0:02:40]}  Ne5 {[%clk 0:01:28]} 15. O-O {[%clk 0:02:37]}  Bf8 {[%clk 0:01:21]} 16. h3 {[%clk 0:02:37]}  g6 {[%clk 0:01:02]} 17. Rfe1 {[%clk 0:02:37]}  Bg7 {[%clk 0:01:02]} 18. Bg3 {[%clk 0:02:36]}  Nh5 {[%clk 0:01:00]} 19. Bh2 {[%clk 0:02:30]}  Qg5 {[%clk 0:00:57]} 20. Bf1 {[%clk 0:02:02]}  Bc8 {[%clk 0:00:54]} 21. Kh1 {[%clk 0:02:01]}  Bd7 {[%clk 0:00:48]} 22. Ne2 {[%clk 0:01:58]}  Qh4 {[%clk 0:00:31]} 23. g3 {[%clk 0:01:46]}  Qe7 {[%clk 0:00:09]} 24. f4 {[%clk 0:01:41]}  b5 {[%clk 0:00:09]} 25. axb5 {[%clk 0:01:23]}  axb5 {[%clk 0:00:08]} 26. fxe5 {[%clk 0:01:23]}  Bxe5 {[%clk 0:00:08]} 27. Bg2 {[%clk 0:01:18]}  Qf6 {[%clk 0:00:05]} 28. Rf1 {[%clk 0:01:06]}  Rxa1 {[%clk 0:00:05]} 29. Rxa1 {[%clk 0:01:03]}  Qf2 {[%clk 0:00:05]} 30. Qd3 {[%clk 0:00:54]}  c4 {[%clk 0:00:02]} 31. Qf3 {[%clk 0:00:50]}  Qxf3 {[%clk 0:00:03]} 32. Bxf3 {[%clk 0:00:44]}  Bxb2 {[%clk 0:00:04]} 33. Rb1 {[%clk 0:00:45]}  c3 {[%clk 0:00:04]} 34. Nb3 {[%clk 0:00:21]}  b4 {[%clk 0:00:05]} 35. g4 {[%clk 0:00:22]}  Nf6 {[%clk 0:00:05]} 36. Bxd6 {[%clk 0:00:22]}  Nxe4 {[%clk 0:00:06]} 37. Bxb4 {[%clk 0:00:19]}  Ba4 {[%clk 0:00:04]} 38. Bxe4 {[%clk 0:00:13]}  Rxe4 {[%clk 0:00:05]} 39. Bxc3 {[%clk 0:00:14]}  Rxe2 {[%clk 0:00:05]} 40. Nc5 {[%clk 0:00:02]}  Bxc3 {[%clk 0:00:04]} 41. Nxa4 {[%clk 0:00:02]}  Be5 {[%clk 0:00:05]} 42. Nb6 {[%clk 0:00:02]}  Rh2+ {[%clk 0:00:05]} 43. Kg1 {[%clk 0:00:02]}  Rxh3 {[%clk 0:00:05]} 44. Rd1 {[%clk 0:00:03]}  Rg3+ {[%clk 0:00:05]} 45. Kf2 {[%clk 0:00:03]}  Rxg4 {[%clk 0:00:05]} 46. d6 {[%clk 0:00:03]}  Bd4+ {[%clk 0:00:05]} 47. Kf3 {[%clk 0:00:03]}  Rh4 {[%clk 0:00:05]} 48. Nd5 {[%clk 0:00:02]}  Rh5 {[%clk 0:00:03]} 49. Ke4 {[%clk 0:00:01]}  Bb6 {[%clk 0:00:02]} 50. Nf6+ {[%clk 0:00:02]}  Kf8 {[%clk 0:00:02]} 51. Nxh5 {[%clk 0:00:02]}  gxh5 {[%clk 0:00:03]} 52. Kd5 {[%clk 0:00:03]}  h4 {[%clk 0:00:03]} 53. Kc6 {[%clk 0:00:03]}  Bd8 {[%clk 0:00:03]} 54. Kd7 {[%clk 0:00:02]}  Bg5 {[%clk 0:00:04]} 55. Rg1 {[%clk 0:00:02]}  Bf6 {[%clk 0:00:02]} 56. Kc8 {[%clk 0:00:02]}  h6 {[%clk 0:00:01]} 57. d7 {[%clk 0:00:02]}  h3 {[%clk 0:00:01]} 58. Rh1 {[%clk 0:00:03]}  Kg7 {[%clk 0:00:01]} 59. Rxh3 {[%clk 0:00:03]}  Kg6 {[%clk 0:00:01]} 60. Rf3 {[%clk 0:00:03]}  Bh4 {[%clk 0:00:01]} 61. Rh3 {[%clk 0:00:03]}  Be7 {[%clk 0:00:02]} 62. Rg3+ {[%clk 0:00:04]}  Kf5 {[%clk 0:00:01]} 63. Re3 {[%clk 0:00:04]}  Bg5 {[%clk 0:00:01]} 64. Rf3+ {[%clk 0:00:04]}  Kg4 {[%clk 0:00:01]} 65. Rxf7 {[%clk 0:00:04]}  Kh4 {[%clk 0:00:01]} 66. Rg7 {[%clk 0:00:04]}  Be7 {[%clk 0:00:00]} 67. Rxe7 {[%clk 0:00:04]} 1-0


[Site "https://www.chess.com"]

[Event "Titled Tuesday Blitz July 4 Late 2023"]
[White "Mattheii"]
[Black "Ter-Sahakyan, Samvel"]
[BlackFideId "13302531"]
[WhiteElo "2548"]
[BlackElo "2871"]
[Result "1-0"]
[Round "9"]
[TimeControl "180+2"]
[Date "2023.07.04"]
[WhiteClock "0:00:08"]
[BlackClock "0:00:00"]
[Board "17"]

1. d4 {[%clk 0:03:00]}  Nf6 {[%clk 0:02:55]} 2. c4 {[%clk 0:03:01]}  g6 {[%clk 0:02:50]} 3. Nc3 {[%clk 0:03:01]}  Bg7 {[%clk 0:02:51]} 4. e4 {[%clk 0:03:01]}  d6 {[%clk 0:02:50]} 5. h3 {[%clk 0:03:02]}  O-O {[%clk 0:02:50]} 6. Bg5 {[%clk 0:03:02]}  c6 {[%clk 0:02:39]} 7. Nf3 {[%clk 0:03:00]}  Nbd7 {[%clk 0:02:37]} 8. Bd3 {[%clk 0:02:58]}  e5 {[%clk 0:02:37]} 9. d5 {[%clk 0:02:58]}  c5 {[%clk 0:02:33]} 10. Qd2 {[%clk 0:02:53]}  a6 {[%clk 0:02:13]} 11. a4 {[%clk 0:02:53]}  Qe8 {[%clk 0:01:57]} 12. g4 {[%clk 0:02:52]}  Kh8 {[%clk 0:01:47]} 13. Kf1 {[%clk 0:02:34]}  Ng8 {[%clk 0:01:46]} 14. Kg2 {[%clk 0:02:20]}  Ndf6 {[%clk 0:01:44]} 15. Nh2 {[%clk 0:02:03]}  h6 {[%clk 0:01:42]} 16. Be3 {[%clk 0:02:03]}  Nh7 {[%clk 0:01:41]} 17. Nf1 {[%clk 0:01:56]}  Bf6 {[%clk 0:01:32]} 18. Ng3 {[%clk 0:01:40]}  Bh4 {[%clk 0:01:32]} 19. f4 {[%clk 0:01:28]}  Bxg3 {[%clk 0:01:17]} 20. Kxg3 {[%clk 0:01:28]}  f5 {[%clk 0:01:17]} 21. fxe5 {[%clk 0:01:13]}  Qxe5+ {[%clk 0:00:54]} 22. Bf4 {[%clk 0:01:13]}  Qe7 {[%clk 0:00:54]} 23. exf5 {[%clk 0:01:11]}  gxf5 {[%clk 0:00:53]} 24. Rae1 {[%clk 0:01:11]}  Qf6 {[%clk 0:00:39]} 25. Rhf1 {[%clk 0:01:02]}  Bd7 {[%clk 0:00:39]} 26. Kh2 {[%clk 0:00:57]}  Rae8 {[%clk 0:00:36]} 27. gxf5 {[%clk 0:00:52]}  Ng5 {[%clk 0:00:33]} 28. Ne4 {[%clk 0:00:39]}  Nxe4 {[%clk 0:00:27]} 29. Bxe4 {[%clk 0:00:40]}  Re7 {[%clk 0:00:17]} 30. Bb1 {[%clk 0:00:26]}  Rg7 {[%clk 0:00:08]} 31. Rg1 {[%clk 0:00:20]}  Bxf5 {[%clk 0:00:05]} 32. Rxg7 {[%clk 0:00:19]}  Kxg7 {[%clk 0:00:05]} 33. Rg1+ {[%clk 0:00:17]}  Kh8 {[%clk 0:00:05]} 34. Bxf5 {[%clk 0:00:15]}  Qxf5 {[%clk 0:00:06]} 35. Bxd6 {[%clk 0:00:15]}  Re8 {[%clk 0:00:04]} 36. Qg2 {[%clk 0:00:12]}  Qf7 {[%clk 0:00:02]} 37. Qg3 {[%clk 0:00:10]}  Re2+ {[%clk 0:00:02]} 38. Rg2 {[%clk 0:00:10]}  Rxg2+ {[%clk 0:00:02]} 39. Qxg2 {[%clk 0:00:11]}  Nf6 {[%clk 0:00:01]} 40. Be5 {[%clk 0:00:11]}  Kh7 {[%clk 0:00:00]} 41. Qc2+ {[%clk 0:00:08]} 1-0


[Site "https://www.chess.com"]

[Event "Titled Tuesday Blitz July 4 Late 2023"]
[White "musclemonster12"]
[Black "Lazavik, Denis"]
[BlackFideId "13515110"]
[WhiteElo "2561"]
[BlackElo "3042"]
[Result "0-1"]
[Round "9"]
[TimeControl "180+2"]
[Date "2023.07.04"]
[WhiteClock "0:00:12"]
[BlackClock "0:02:04"]
[Board "18"]

1. Nf3 {[%clk 0:03:00]}  d5 {[%clk 0:02:59]} 2. b3 {[%clk 0:02:59]}  c6 {[%clk 0:02:58]} 3. Bb2 {[%clk 0:03:00]}  Bg4 {[%clk 0:02:58]} 4. e3 {[%clk 0:02:59]}  Nd7 {[%clk 0:02:57]} 5. Be2 {[%clk 0:02:59]}  Ngf6 {[%clk 0:02:57]} 6. O-O {[%clk 0:03:00]}  e6 {[%clk 0:02:57]} 7. c4 {[%clk 0:03:00]}  Bd6 {[%clk 0:02:57]} 8. Nc3 {[%clk 0:03:00]}  O-O {[%clk 0:02:58]} 9. h3 {[%clk 0:02:59]}  Bh5 {[%clk 0:02:57]} 10. d3 {[%clk 0:02:53]}  Qe7 {[%clk 0:02:56]} 11. Rc1 {[%clk 0:02:53]}  a6 {[%clk 0:02:56]} 12. cxd5 {[%clk 0:02:47]}  cxd5 {[%clk 0:02:53]} 13. Nd4 {[%clk 0:02:36]}  Bg6 {[%clk 0:02:53]} 14. Qd2 {[%clk 0:02:30]}  Rac8 {[%clk 0:02:53]} 15. Rc2 {[%clk 0:02:08]}  e5 {[%clk 0:02:43]} 16. Nf3 {[%clk 0:02:07]}  e4 {[%clk 0:02:40]} 17. Nd4 {[%clk 0:01:57]}  Ne5 {[%clk 0:02:34]} 18. dxe4 {[%clk 0:01:47]}  dxe4 {[%clk 0:02:34]} 19. Rfc1 {[%clk 0:01:03]}  Rcd8 {[%clk 0:02:33]} 20. Qe1 {[%clk 0:00:58]}  Nd3 {[%clk 0:02:33]} 21. Bxd3 {[%clk 0:00:58]}  exd3 {[%clk 0:02:34]} 22. Rd2 {[%clk 0:00:58]}  Bb4 {[%clk 0:02:31]} 23. Qd1 {[%clk 0:00:45]}  Rc8 {[%clk 0:02:22]} 24. Rxd3 {[%clk 0:00:39]}  Bxd3 {[%clk 0:02:20]} 25. Qxd3 {[%clk 0:00:40]}  Rfd8 {[%clk 0:02:14]} 26. Rd1 {[%clk 0:00:29]}  Bxc3 {[%clk 0:02:14]} 27. Bxc3 {[%clk 0:00:30]}  Qe4 {[%clk 0:02:14]} 28. Qd2 {[%clk 0:00:29]}  Qg6 {[%clk 0:02:14]} 29. Bb2 {[%clk 0:00:27]}  Rc2 {[%clk 0:02:07]} 30. Qa5 {[%clk 0:00:24]}  Rd5 {[%clk 0:02:06]} 31. Nxc2 {[%clk 0:00:18]}  Rxd1+ {[%clk 0:02:04]} 32. Kh2 {[%clk 0:00:19]}  Qxc2 {[%clk 0:02:04]} 33. Bxf6 {[%clk 0:00:12]}  gxf6 {[%clk 0:02:04]} 0-1


[Site "https://www.chess.com"]

[Event "Titled Tuesday Blitz July 4 Late 2023"]
[White "Weetik, Vjacheslav"]
[Black "He, Anthony"]
[WhiteFideId "4153472"]
[BlackFideId "2088215"]
[WhiteElo "2731"]
[BlackElo "2951"]
[Result "0-1"]
[Round "9"]
[TimeControl "180+2"]
[Date "2023.07.04"]
[WhiteClock "0:00:00"]
[BlackClock "0:02:05"]
[Board "19"]

1. d4 {[%clk 0:02:51]}  Nf6 {[%clk 0:02:58]} 2. c4 {[%clk 0:02:51]}  g6 {[%clk 0:02:58]} 3. Nc3 {[%clk 0:02:51]}  d5 {[%clk 0:02:58]} 4. cxd5 {[%clk 0:02:50]}  Nxd5 {[%clk 0:02:59]} 5. e4 {[%clk 0:02:50]}  Nxc3 {[%clk 0:02:59]} 6. bxc3 {[%clk 0:02:51]}  Bg7 {[%clk 0:02:59]} 7. Bg5 {[%clk 0:02:49]}  c5 {[%clk 0:02:58]} 8. Rc1 {[%clk 0:02:50]}  O-O {[%clk 0:02:58]} 9. d5 {[%clk 0:02:49]}  Qa5 {[%clk 0:02:54]} 10. Qd2 {[%clk 0:02:49]}  e6 {[%clk 0:02:54]} 11. c4 {[%clk 0:02:48]}  Qa3 {[%clk 0:02:52]} 12. Bd3 {[%clk 0:02:34]}  exd5 {[%clk 0:02:51]} 13. cxd5 {[%clk 0:02:28]}  Re8 {[%clk 0:02:44]} 14. Ne2 {[%clk 0:01:50]}  Nd7 {[%clk 0:02:36]} 15. f4 {[%clk 0:01:29]}  c4 {[%clk 0:02:30]} 16. Rxc4 {[%clk 0:01:25]}  Nc5 {[%clk 0:02:30]} 17. Bb1 {[%clk 0:01:07]}  b5 {[%clk 0:02:30]} 18. Rb4 {[%clk 0:00:07]}  Bg4 {[%clk 0:02:22]} 19. e5 {[%clk 0:00:01]}  f6 {[%clk 0:02:05]} 20. Bh4 {[%clk 0:00:02]}  fxe5 {[%clk 0:02:06]} 21. Rxb5 {[%clk 0:00:01]}  exf4 {[%clk 0:02:05]} 22. O-O {[%clk 0:00:00]}  Bxe2 {[%clk 0:02:05]} 0-1


[Site "https://www.chess.com"]

[Event "Titled Tuesday Blitz July 4 Late 2023"]
[White "Papp, Levente"]
[Black "Grigoriants, Sergey"]
[WhiteFideId "751243"]
[BlackFideId "4130804"]
[WhiteElo "2686"]
[BlackElo "2858"]
[Result "1/2-1/2"]
[Round "9"]
[TimeControl "180+2"]
[Date "2023.07.04"]
[WhiteClock "0:00:14"]
[BlackClock "0:00:10"]
[Board "22"]

1. b3 {[%clk 0:02:56]}  d5 {[%clk 0:02:57]} 2. Bb2 {[%clk 0:02:56]}  Bf5 {[%clk 0:02:57]} 3. Nf3 {[%clk 0:02:56]}  e6 {[%clk 0:02:56]} 4. d3 {[%clk 0:02:55]}  h6 {[%clk 0:02:56]} 5. g3 {[%clk 0:02:55]}  Bh7 {[%clk 0:02:53]} 6. Bg2 {[%clk 0:02:55]}  Nf6 {[%clk 0:02:54]} 7. O-O {[%clk 0:02:55]}  Be7 {[%clk 0:02:54]} 8. Nbd2 {[%clk 0:02:55]}  O-O {[%clk 0:02:54]} 9. c4 {[%clk 0:02:55]}  c6 {[%clk 0:02:47]} 10. Qc2 {[%clk 0:02:54]}  Nbd7 {[%clk 0:02:45]} 11. Rac1 {[%clk 0:02:53]}  Bd6 {[%clk 0:02:43]} 12. Rfd1 {[%clk 0:02:32]}  Qe7 {[%clk 0:02:42]} 13. Qb1 {[%clk 0:02:24]}  a5 {[%clk 0:02:33]} 14. Qa1 {[%clk 0:02:20]}  a4 {[%clk 0:02:31]} 15. Ne5 {[%clk 0:02:09]}  Nxe5 {[%clk 0:02:04]} 16. Bxe5 {[%clk 0:02:08]}  axb3 {[%clk 0:02:05]} 17. Bxd6 {[%clk 0:02:00]}  Qxd6 {[%clk 0:02:06]} 18. Nxb3 {[%clk 0:01:59]}  Ra3 {[%clk 0:02:03]} 19. e4 {[%clk 0:01:49]}  Qe7 {[%clk 0:01:26]} 20. cxd5 {[%clk 0:01:46]}  exd5 {[%clk 0:01:22]} 21. exd5 {[%clk 0:01:45]}  Nxd5 {[%clk 0:01:21]} 22. Bxd5 {[%clk 0:01:45]}  cxd5 {[%clk 0:01:22]} 23. Rd2 {[%clk 0:01:31]}  Rfa8 {[%clk 0:01:20]} 24. Qd4 {[%clk 0:01:30]}  Bf5 {[%clk 0:01:14]} 25. Qxd5 {[%clk 0:01:25]}  Bh3 {[%clk 0:01:05]} 26. Qe4 {[%clk 0:00:51]}  Qxe4 {[%clk 0:00:49]} 27. dxe4 {[%clk 0:00:51]}  Rxa2 {[%clk 0:00:50]} 28. f3 {[%clk 0:00:20]}  Rxd2 {[%clk 0:00:32]} 29. Nxd2 {[%clk 0:00:20]}  Ra2 {[%clk 0:00:33]} 30. Rd1 {[%clk 0:00:20]}  Be6 {[%clk 0:00:33]} 31. Kf1 {[%clk 0:00:18]}  b5 {[%clk 0:00:34]} 32. Ke2 {[%clk 0:00:15]}  b4 {[%clk 0:00:32]} 33. Rb1 {[%clk 0:00:14]}  b3 {[%clk 0:00:10]} 34. Kd3 {[%clk 0:00:14]} 1/2-1/2


[Site "https://www.chess.com"]